Cogmind - Beta 13 @@@ ROGUE MODE // 2024.05.19 @ 13:21:14 Player: CONM Result: Destroyed by S-10 Pest with Light Assault Rifle Performance ------------- Evolutions (1) 500 Regions Visited (5) 1000 Robots Destroyed (19) 95 Value Destroyed (430) 430 Prototype IDs (23) 460 Alien Tech Used (0) 0 Bonus (300) 300 TOTAL SCORE: 2785 Bonus ------- Aligned with FarCom 300 Cogmind --------- Core Integrity 0/400 Matter 68/300 Energy 99/100 System Corruption 0% Temperature Cool (0) Movement Rolling (80) Location -8/Mines Parts ------- > --- POWER (1) -------- (None) > --- PROPULSION (3) --- Wheel > --- UTILITY (3) ------ Visual Processing Unit > --- WEAPON (2) ------- (None) > --- INVENTORY (5) ---- Large Storage Unit Supersonic Drone Bay (1/1) Heavy Laser Proton Missile Launcher Grenade Launcher Peak State ------------ > --- POWER ------------ Light Ion Engine > --- PROPULSION ------- Light Treads Light Treads > --- UTILITY ---------- Small Storage Unit Seismic Detector Hardened Light Armor Plating > --- WEAPON ----------- Assault Rifle Grenade Launcher > --- INVENTORY -------- Light Ion Engine Wheel Disposable Heat Sink Visual Processing Unit Improved Terrain Scanner Assault Rifle Grenade Launcher [Rating: 10] Favorites ----------- Power Light Ion Engine Engine Light Ion Engine Propulsion Light Treads Treads Light Treads Wheel Wheel Utility Small Storage Unit Device Seismic Detector Storage Small Storage Unit Processor Visual Processing Unit Protection Hardened Light Armor Plating Weapon Assault Rifle Energy Gun Small Laser Ballistic Gun Assault Rifle Launcher Grenade Launcher Build | -11 -10 -9 -9 -9 -8 ------- Run | Yrd Mat Mat Min Exi Min Slots Evolved 2 | . . 2 . . . Power . | . . . . . . Propulsion 1 | . . 1 . . . Utility 1 | . . 1 . . . Weapon . | . . . . . . Parts Attached 21 | 7 5 4 4 . 1 Power 2 | 1 . 1 . . . Engine 2 | 1 . 1 . . . Core . | . . . . . . Reactor . | . . . . . . Propulsion 5 | 2 . . 2 . 1 Treads 2 | 2 . . . . . Leg . | . . . . . . Wheel 3 | . . . 2 . 1 Hover . | . . . . . . Flight . | . . . . . . Utility 5 | 2 . 1 2 . . Device 2 | 1 . . 1 . . Storage 1 | 1 . . . . . Processor 1 | . . . 1 . . Hackware . | . . . . . . Protection 1 | . . 1 . . . Artifact . | . . . . . . Weapon 9 | 2 5 2 . . . Energy Gun 1 | 1 . . . . . Energy Cannon . | . . . . . . Ballistic Gun 5 | 1 3 1 . . . Ballistic Cannon . | . . . . . . Launcher 3 | . 2 1 . . . Special Weapon . | . . . . . . Impact Weapon . | . . . . . . Slashing Weapon . | . . . . . . Piercing Weapon . | . . . . . . Special Melee Weapon . | . . . . . . Unidentified Prototypes . | . . . . . . Parts Lost 6 | . . 2 1 . 3 Power 1 | . . . 1 . . Propulsion 2 | . . . . . 2 Utility 1 | . . . . . 1 Weapon 2 | . . 2 . . . Highest Loss Streak 3 | . . 2 1 . 3 To Critical Strikes . | . . . . . . Average Slot Usage (%) 73 | . 100 70 49 44 24 Engine 9 | . 14 9 9 . . Treads 15 | . 28 16 . . . Wheel 5 | . . . 19 22 8 Device 11 | . 14 9 9 11 5 Storage 8 | . 14 9 . . . Processor 3 | . . . 9 11 11 Protection 2 | . . 6 . . . Energy Gun 1 | . 3 . . . . Ballistic Gun 10 | . 15 13 . . . Launcher 4 | . 8 5 . . . Naked Turns 41 | . . 41 . . . Heaviest Build 19 | 11 14 19 4 1 1 Greatest Support 40 | 40 40 40 20 20 20 Greatest Overweight (x) 6 | 1 . 6 . . . Average Overweight (x) . | . . . . . . Largest Inventory Capacity 8 | 8 8 8 5 5 5 Average Capacity 7 | 7 8 7 5 5 5 Most Carried 8 | 4 8 8 5 5 5 Average Carried 6 | 2 7 7 4 5 5 Final Capacity 8 | 8 8 5 5 5 5 Final Carried 8 | 4 8 4 5 5 5 Class Distribution -------------------- 100% | Mutant Dominant Class ---------------- Mutant | -10/Materials Mutant | -9/Materials Mutant | -9/Mines Mutant | -9/Exiles Mutant | -8/Mines Resources | -11 -10 -9 -9 -9 -8 ----------- Run | Yrd Mat Mat Min Exi Min Matter Collected 430 | 262 44 55 14 . 55 Remotely . | . . . . . . Salvage Created 402 | 47 200 127 . . 28 Parts 38 | 7 12 16 . . 3 Haulers Intercepted . | . . . . . . Recyclers Shooed . | . . . . . . Parts Field Recycled . | . . . . . . Retrieved Matter . | . . . . . . Parts Self-Destructed . | . . . . . . Prevented . | . . . . . . Kills | -11 -10 -9 -9 -9 -8 ------- Run | Yrd Mat Mat Min Exi Min Combat Hostiles Destroyed 12 | . 7 5 . . . Guns 2 | . 1 1 . . . AOE 10 | . 6 4 . . . Classes Destroyed 7 | 1 4 2 . . . Builder 1 | . 1 . . . . Tunneler 3 | 2 . . . . 1 Recycler 1 | . 1 . . . . Watcher 2 | . . 2 . . . Swarmer 4 | . 2 2 . . . Grunt 7 | . 5 2 . . . Sentry 1 | . . 1 . . . Best Kill Streak 4 | 2 4 3 . . 1 Combat Bots Only 4 | . 4 3 . . . Max Kills in Single Turn 3 | 1 3 1 . . 1 Gunslinging . | . . . . . . Exploded 1 | . 1 1 . . . Melee . | . . . . . . Uniques/NPCs Destroyed . | . . . . . . Combat | -11 -10 -9 -9 -9 -8 -------- Run | Yrd Mat Mat Min Exi Min Hostile Shots Fired 195 | . 34 89 35 . 37 Missed 71 | . 7 36 16 . 12 Damage Taken 1361 | . 354 650 151 . 206 Core 489 | . 87 212 61 . 129 Absorbed by Shields . | . . . . . . Core Remaining (%) 82 | 100 65 . . . . Volleys Fired 37 | 5 15 17 . . . Largest 2 | 2 2 2 . . . Hottest 60 | 60 50 50 . . . Shots Fired 67 | 10 30 27 . . . Gun 49 | 10 22 17 . . . Cannon . | . . . . . . Launcher 18 | . 8 10 . . . Special . | . . . . . . Kinetic 44 | 5 22 17 . . . Thermal 5 | 5 . . . . . Explosive 18 | . 8 10 . . . Electromagnetic . | . . . . . . Robot Hit Streak 12 | 3 7 12 . . . Robot Miss Streak 2 | 1 2 2 . . . Penetration Max . | . . . . . . Secondary Targets . | . . . . . . Shots Hit Robots 37 | 6 17 14 . . . Core Hits 32 | 3 17 11 . . 1 Critical Kills 1 | . . 1 . . . Critical Parts Destroyed . | . . . . . . Critical Strikes 1 | . . 1 . . . Destroy 1 | . . 1 . . . Melee Attacks . | . . . . . . Impact . | . . . . . . Slashing . | . . . . . . Piercing . | . . . . . . Sneak Attacks . | . . . . . . Combat Hostiles . | . . . . . . Follow-up Attacks . | . . . . . . Damage Inflicted 1322 | 53 689 563 . . 17 Guns 323 | 53 142 128 . . . Cannons . | . . . . . . Explosions 974 | . 543 431 . . . Melee . | . . . . . . Ramming 25 | . 4 4 . . 17 Kinetic 283 | 13 142 128 . . . Thermal 83 | 40 . 43 . . . Explosive 931 | . 543 388 . . . Electromagnetic . | . . . . . . Impact . | . . . . . . Slashing . | . . . . . . Piercing . | . . . . . . Highest Corruption 2 | . 2 . . . . Average Corruption 2 | . 2 . . . . Corruption Purged . | . . . . . . Corruption Blocked . | . . . . . . Effects 1 | . 1 . . . . Message Errors 1 | . 1 . . . . Overload Shots . | . . . . . . Overflow Damage 24 | . 17 7 . . . Projectiles . | . . . . . . Explosions 24 | . 17 7 . . . Melee . | . . . . . . Knockbacks . | . . . . . . Impact . | . . . . . . Kinetic . | . . . . . . Secondary . | . . . . . . Self-Inflicted Damage 37 | . 29 . . . 8 Shots 2 | . 2 . . . . Rammed 6 | . 4 1 . . 1 Targets Rammed 6 | . 4 1 . . 1 Kicked . | . . . . . . Crushed . | . . . . . . Highest Temperature 20 | 20 20 9 . . . Average Temperature 7 | 12 5 4 . . . Received Heat Transfer 336 | . 162 174 . . . Siege Activations . | . . . . . . Robots Corrupted . | . . . . . . Combat Hostiles . | . . . . . . Parts Fried . | . . . . . . Impact Corruptions . | . . . . . . Robots Melted . | . . . . . . Combat Hostiles . | . . . . . . Parts Melted . | . . . . . . Heat Transferred 150 | 100 . 50 . . . Parts Sabotaged . | . . . . . . Parts Stolen . | . . . . . . Parts Stripped . | . . . . . . Power Chain Reactions . | . . . . . . Alert | -11 -10 -9 -9 -9 -8 ------- Run | Yrd Mat Mat Min Exi Min Peak Influence 338 | 10 237 338 87 . 35 Initial 57 | . 6 40 57 . . Average 115 | 3 106 187 66 . 7 Maximum Alert Level 1 | . 1 1 . . . Low Security (%) 74 | 100 72 58 100 . 100 Level 1 25 | . 27 41 . . . Level 2 . | . . . . . . Level 3 . | . . . . . . Level 4 . | . . . . . . Level 5 . | . . . . . . High Security . | . . . . . . Max Security . | . . . . . . Squads Dispatched 2 | . 1 1 . . . Investigation 1 | . . 1 . . . Extermination . | . . . . . . Reinforcement 1 | . 1 . . . . Assault . | . . . . . . Garrison . | . . . . . . Intercept . | . . . . . . Searches Triggered . | . . . . . . Construction Impeded . | . . . . . . Haulers Reinforced . | . . . . . . Active Scanning Responses . | . . . . . . Cargo Convoy Interrupts . | . . . . . . Stealth | -11 -10 -9 -9 -9 -8 --------- Run | Yrd Mat Mat Min Exi Min Distress Signals 3 | . . 3 . . . Communications Jammed . | . . . . . . Distress Signals . | . . . . . . Times Spotted 51 | . 15 22 6 . 8 Peak Tracking Total 11 | . 4 11 4 . 7 Tactical Retreats 7 | . 1 3 2 . 1 Traps | -11 -10 -9 -9 -9 -8 ------- Run | Yrd Mat Mat Min Exi Min Traps Triggered 3 | . 1 2 . . . Indirectly . | . . . . . . Trap Hack Attempts . | . . . . . . Triggered . | . . . . . . Disarmed . | . . . . . . Reprogrammed . | . . . . . . Reused . | . . . . . . Traps Extracted . | . . . . . . Installed . | . . . . . . Triggered . | . . . . . . Machines | -11 -10 -9 -9 -9 -8 ---------- Run | Yrd Mat Mat Min Exi Min Machines Disabled 3 | . . 3 . . . Max in Single Turn 2 | . . 2 . . . Machines Repaired . | . . . . . . Machines Dismantled . | . . . . . . Machines Sabotaged . | . . . . . . Overloaded Fab Kills . | . . . . . . Hacking | -11 -10 -9 -9 -9 -8 --------- Run | Yrd Mat Mat Min Exi Min Machines Accessed 6 | . 2 . 1 3 . Terminals 2 | . 2 . . . . Fabricators . | . . . . . . Repair Stations . | . . . . . . Recycling Units . | . . . . . . Scanalyzers . | . . . . . . Garrison Access . | . . . . . . Total Hacks 11 | . 4 . 1 6 . Successful 10 | . 3 . 1 6 . Failed 1 | . 1 . . . . Catastrophic . | . . . . . . Database Lockouts . | . . . . . . Manual 3 | . 2 . . 1 . Terminals 4 | . 4 . . . . Fabricators . | . . . . . . Repair Stations . | . . . . . . Recycling Units . | . . . . . . Scanalyzers . | . . . . . . Garrison Access . | . . . . . . Terminal Hacks 10 | . 3 . 1 6 . Record 5 | . . . . 5 . Open Door 1 | . . . 1 . . Terminal Index 1 | . 1 . . . . Locate Traps 1 | . 1 . . . . Hauler Manifests 1 | . 1 . . . . Derelict Proto ID Bank 1 | . . . . 1 . Fabricator Hacks . | . . . . . . Repair Station Hacks . | . . . . . . Recycling Unit Hacks . | . . . . . . Scanalyzer . | . . . . . . Garrison Access Hacks . | . . . . . . Unauthorized Hacks . | . . . . . . Terminals . | . . . . . . Fabricators . | . . . . . . Repair Stations . | . . . . . . Recycling Units . | . . . . . . Scanalyzers . | . . . . . . Garrison Access . | . . . . . . Data Cores Recovered . | . . . . . . Used . | . . . . . . Hacking Detections 1 | . 1 . . . . Full Trace Events . | . . . . . . Feedback Events . | . . . . . . Feedback Blocked . | . . . . . . Robot Schematics Acquired . | . . . . . . Robots Built . | . . . . . . Authchips . | . . . . . . Time . | . . . . . . Total Robot Build Rating . | . . . . . . Part Schematics Acquired . | . . . . . . Parts Built . | . . . . . . Authchips . | . . . . . . Time . | . . . . . . Total Part Build Rating . | . . . . . . Parts Repaired . | . . . . . . Time . | . . . . . . Parts Recycled . | . . . . . . Recycled Matter . | . . . . . . Retrieved Matter . | . . . . . . Retrieved Components . | . . . . . . Parts Scanalyzed . | . . . . . . Part Schematics Acquired . | . . . . . . Parts Damaged . | . . . . . . Bothacking | -11 -10 -9 -9 -9 -8 ------------ Run | Yrd Mat Mat Min Exi Min Used RIF Installer . | . . . . . . Robots Hacked . | . . . . . . Non-combat . | . . . . . . Combat . | . . . . . . Robot Hacks Applied . | . . . . . . Relay Couplers Released . | . . . . . . Fabnet Peak Effective % . | . . . . . . Robots Rewired . | . . . . . . Allies Hacked . | . . . . . . Hacks Repelled . | . . . . . . Allies | -11 -10 -9 -9 -9 -8 -------- Run | Yrd Mat Mat Min Exi Min Total Allies . | . . . . . . Largest Group . | . . . . . . Highest-Rated Group . | . . . . . . Highest-Rated Ally . | . . . . . . Total Orders . | . . . . . . Ally Attacks . | . . . . . . Total Damage . | . . . . . . Kills . | . . . . . . Allies Corrupted . | . . . . . . Allies Melted . | . . . . . . Intel | -11 -10 -9 -9 -9 -8 ------- Run | Yrd Mat Mat Min Exi Min Robot Analysis Total . | . . . . . . Derelict Logs Recovered . | . . . . . . Drone Launches . | . . . . . . Drone Recoveries . | . . . . . . Exploration | -11 -10 -9 -9 -9 -8 ------------- Run | Yrd Mat Mat Min Exi Min Turns Passed 1390 | 155 454 416 99 228 38 Spaces Moved 1041 | 82 243 273 110 281 52 Core 135 | 4 . 102 8 . 21 Treads 492 | 78 243 171 . . . Legs . | . . . . . . Wheels 414 | . . . 102 281 31 Hover . | . . . . . . Flight . | . . . . . . Fastest Speed 50 | 50 160 50 50 80 50 Average Speed 117 | 155 160 133 77 80 67 Slowest Speed 350 | 160 160 350 80 80 80 Overloaded Moves . | . . . . . . Propulsion Burnouts . | . . . . . . Robots Hopped . | . . . . . . Cave-ins Triggered . | . . . . . . Exploration Rate (%) 34 | 4 51 34 36 64 16 Regions Visited 5 Branch Regions 3 Pre-discovered Areas 1 | . . . . 1 . Known Exits Taken . | . . . . . . Unknown Exits Taken 5 | 1 1 1 1 1 . Scrap Searched 2 | . . . 1 . 1 Spaces Dug . | . . . . . . Terrain Destroyed 89 | . 34 55 . . . Melee . | . . . . . . Projectile . | . . . . . . AOE 89 | . 34 55 . . . Terrain Rammed . | . . . . . . Walls Destroyed . | . . . . . . Machines Disabled . | . . . . . . Actions | -11 -10 -9 -9 -9 -8 --------- Run | Yrd Mat Mat Min Exi Min Total 1130 | 97 277 296 122 284 54 Wait 7 | . 2 . 5 . . Move 1036 | 81 242 272 109 280 52 Hop . | . . . . . . Pick Up 15 | 4 5 . 4 2 . Fast Attach 9 | 7 . . 1 . 1 Attach 6 | . . 3 3 . . Detach . | . . . . . . Swap 6 | . 5 1 . . . Drop 8 | . 4 2 . 2 . Fire 37 | 5 15 17 . . . Melee . | . . . . . . Ram 1 | . . . . . 1 Kick . | . . . . . . Crush 5 | . 4 1 . . . Escape Stasis . | . . . . . . Rewire . | . . . . . . Trap . | . . . . . . Miscellaneous . | . . . . . . Route ------- -11/Scrapyard -10/Materials (discovered 2 exits: [*Mat] / [*Min]) -9/Materials -9/Mines -9/Exiles (discovered 2 exits: [*Min x2]) -8/Mines History --------- Turn | Location | Event 45 | -11/Scrapyard | Discovered new exit (range 15) 156 | -11/Scrapyard | Entered Materials 260 | -10/Materials | Discovered new exit (range 10) 311 | -10/Materials | Build established: Mutant 443 | -10/Materials | Discovered new exit (range 16) 610 | -10/Materials | Entered another Materials area 610 | -9/Materials | Evolved 2 slots: Propulsion x1, Utility x1 983 | -9/Materials | Released all parts (4) 1016 | -9/Materials | Discovered new exit (range 16) 1026 | -9/Materials | Core integrity fell below 50% 1026 | -9/Materials | Entered Mines 1068 | -9/Mines | Met a Derelict who couldn't figure out how to use a Trap Extractor 1122 | -9/Mines | Deemed a non-threat by the Exiles lab entrance 1122 | -9/Mines | Discovered new exit (range 5) 1125 | -9/Mines | Entered Exiles 1138 | -9/Exiles | Discovered new exit (range 15) 1148 | -9/Exiles | Met 8R-AWN 1162 | -9/Exiles | Met EX-HEX 1186 | -9/Exiles | Met EX-BIN 1201 | -9/Exiles | Aligned with FarCom system 1202 | -9/Exiles | Given EX-Vault access code 1224 | -9/Exiles | Opened EX-Vault 1233 | -9/Exiles | Found Supersonic Drone Bay 1265 | -9/Exiles | Warned to stay clear of 0b10 Research branches 1290 | -9/Exiles | Met EX-DEC 1302 | -9/Exiles | Learned location of Zion (-7) 1345 | -9/Exiles | Discovered new exit (range 10) 1353 | -9/Exiles | Left Exiles lab with Supersonic Drone Bay 1353 | -9/Exiles | Entered Mines 1374 | -8/Mines | Core integrity fell below 20% 1391 | -8/Mines | Destroyed by S-10 Pest with Light Assault Rifle Last Messages --------------- LOCATION=UNKNOWN GOAL=ESCAPE 01353_ Receiving FarCom transmissions... 01354_ C-30 ARC bursts open, deploying its payload. 01354_ S-10 Pest unfolds itself. 01354_ Wheel destroyed. 01357_ S-10 Pest destroyed. 01359_ Searching scrap... 01359_ Found Hpw. Tractor Beam. 01359_ Found Recoil Stabilizer. 01359_ Found Disposable Heat Sink. 01359_ Found VTOL Module. 01359_ Found 27 Matter. 01360_ Acquired 27 matter. 01372_ Wheel destroyed. 01374_ Imp. Terrain Scanner destroyed. 01382_ Slammed into T-07 Excavator. 01382_ T-07 Excavator destroyed. 01383_ Acquired 28 matter. 01384_ Acquired Wheel. Map ----- +----------------------------------------------------+ | | | | | | | | | | | | | | | | | | | | | | | | | | | | | | | | | | | ??????????????????????????????????????????? | | ??????????????????###?????????????????????? | | ?????????????##### ###???????????????????? | | ????????????## ##??????????????????? | | ??????????### ##?????????????????? | | ?????????## ##????????????????? | | ?????????# ##???????????????? | | ???????????# s ##??????????????? | | ???????????##ss## @ #??????????????? | | ????????????#s#######rr #????????? | | ????????????#s#???????? ###### #????????? | | ????????????#!#???????????#???????????????? | | ????????????# #???????????????????????????? | | ????????????#|#???????????????????????????? | | ????????????# #???????????????????????????? | | ????????????# #########???????????????????? | | ????????????# #???????????????????? | | ????????????######## #???????????????????? | | ???????????????????# #???????????????????? | | ???????????????????# s###?????????????????? | | ???????????????????#s ##### #???????????? | | ??????????????????## #???????????? | | ?????????????????## ##### #???????????? | | ?????????????????# ###?????????????????? | | ?????????????????# ##???????????????????? | | ??????????#??????# ##????????????????????? | | ???????#?????????# #?????????????????????? | | ???????????????#?# ##????? ?????? ???????? | | ???????????????#?# #????????????????????? | | ?????????????????### #????????????????????? | | ???????????????????# #????????????????????? | | ?????#??????????#### #????????????????????? | | ?????????######## #????????????????????? | +----------------------------------------------------+ Best States ------------- Heat Dissipation 28 Energy Generation 10 Energy Capacity 125 Matter Stores 290 Matter Capacity 300 Sight Range 18 Terrain Scan Range 16 Terrain Scan Density 10 Armor Coverage 150 Evasion (%) 50 Recoil Reduction 2 Item Schematics ----------------- None Robot Schematics ------------------ None Fabricated ------------ Nothing Alien Tech Used ----------------- None Achievements -------------- None Challenges ------------ None Game ------ Seed IonicNavigationShielding Manual? 0 Play Time 00:20:09 Cumulative 19.4 hours Start 2024.05.17 @ 18:06:53 End 2024.05.19 @ 13:21:14 Sessions 2 Manual Loads 0 Difficulty Rogue Special Mode None Game No. 39 Rogue 39 Adventurer 0 Explorer 0 Win Type - Total 0 Types 0/0/0/0/0/0/0/0/0 Lore% 15 Gallery% 16 Achievement% 18 Wizard Run 0 Options --------- Layout 0 ASCII 0 Keyboard 0 Movement Arrows Keybinds 0 Fullscreen 2 Font 18/SmallcapsGlow Map View 76x50 Zoom Use 0% Tactical HUD 1 Map Filters NONE Filters NONE Steam 1 RUN: 4ae7f405-fc08-4d84-ad53-f5d602f282a7